fUSD/lending_fUSD_20250502
["ID","MTS","AMOUNT","RATE_DAILY","PERIOD"]
[359654908,1746222649867,-450.0,0.00019987,2]
[359654909,1746222649877,-1553.65,0.00019987,2]
[359654910,1746222649887,-564.81,0.00019987,2]
[359654911,1746222649896,-450.0,0.00019987,2]
[359654912,1746222649905,-666.04,0.00019987,2]
[359654913,1746222649915,-452.91,0.00019987,2]
[359654914,1746222649924,-4359.37,0.00019987,2]
[359654915,1746222649935,-450.0,0.00019987,2]
[359654916,1746222649945,-4228.93,0.00019987,2]
[359654917,1746222649955,-492.36,0.00019987,2]
[359654918,1746222649965,-468.76,0.00019987,2]
[359654919,1746222649975,-450.0,0.00019987,2]
[359654920,1746222649984,-450.0,0.00019987,2]
[359654921,1746222649993,-450.0,0.00019987,2]
[359654922,1746222650002,-454.81,0.00019987,2]
[359654923,1746222650012,-450.0,0.00019987,2]
[359654924,1746222650024,-972.55,0.00019987,2]
[359654925,1746222650033,-450.0,0.00019987,2]
[359654926,1746222650042,-450.0,0.00019987,2]
[359654927,1746222650052,-450.0,0.00019987,2]
[359654928,1746222650061,-766.96,0.00019987,2]
[359654929,1746222650070,-525.75,0.00019987,2]
[359654930,1746222650079,-4356.75,0.00019987,2]
[359654931,1746222650089,-450.0,0.00019987,2]
[359654932,1746222650102,-450.0,0.00019987,2]
[359654933,1746222650111,-450.0,0.00019987,2]
[359654934,1746222650121,-469.8,0.00019987,2]
[359654935,1746222650130,-88348.56,0.00019987,2]
[359654936,1746222650139,-450.0,0.00019987,2]
[359654937,1746222650149,-555.26,0.00019987,2]
[359654938,1746222650158,-405.21,0.00019987,2]
[359654939,1746222650168,-542.01,0.00019987,2]
[359654940,1746222650177,-450.0,0.00019987,2]
[359654941,1746222650186,-450.0,0.00019987,2]
[359654942,1746222650195,-326.04767781,0.00019987,2]
[359654943,1746222650205,-2807.2,0.00019987,2]
[359654944,1746222650214,-450.0,0.00019987,2]
[359654945,1746222650223,-725.15,0.00019987,2]
[359654946,1746222650233,-28640.54,0.00019987,2]
[359654947,1746222650242,-109553.91,0.00019987,2]
[359654948,1746222650252,-450.0,0.00019987,2]
[359654949,1746222650261,-2313.64,0.00019987,2]
[359654950,1746222650271,-1875.87,0.00019987,2]
[359654951,1746222650280,-496.25,0.00019987,2]
[359654952,1746222650289,-555.23,0.00019987,2]
[359654953,1746222650298,-450.0,0.00019987,2]
[359654954,1746222650307,-1056.32,0.00019987,2]
[359654955,1746222650316,-15993.44,0.00019987,2]
[359654956,1746222650325,-450.0,0.00019987,2]
[359654957,1746222650334,-716.74,0.00019987,2]
[359654958,1746222650343,-450.0,0.00019987,2]
[359654959,1746222650352,-575.35,0.00019987,2]
[359654960,1746222650361,-2204.73,0.00019987,2]
[359654961,1746222650370,-450.0,0.00019987,2]
[359654962,1746222650379,-565.5,0.00019987,2]
[359654963,1746222650388,-450.0,0.00019987,2]
[359654964,1746222650397,-711.19,0.00019987,2]
[359654965,1746222650406,-450.0,0.00019987,2]
[359654966,1746222650415,-522.59,0.00019987,2]
[359654967,1746222650423,-3244.23,0.00019987,2]
[359654968,1746222650431,-450.0,0.00019987,2]
[359654969,1746222650439,-450.0,0.00019987,2]
[359654970,1746222650447,-523.26,0.00019987,2]
[359654971,1746222650455,-907.99,0.00019987,2]
[359654972,1746222650462,-793.55,0.00019987,2]
[359654973,1746222650469,-450.0,0.00019987,2]
[359654974,1746222650476,-450.0,0.00019987,2]
[359654975,1746222650485,-593.28,0.00019987,2]
[359654976,1746222650492,-450.0,0.00019987,2]
[359654977,1746222650500,-450.0,0.00019988,2]
[359654978,1746222650507,-450.0,0.00019988,2]
[359654979,1746222650515,-500.0,0.0001999,2]
[359654980,1746222650523,-500.0,0.0001999,2]
[359654981,1746222650531,-441.0,0.0001999,2]
[359654982,1746222650538,-500.0,0.0001999,2]
[359654983,1746222650546,-500.0,0.0001999,2]
[359654984,1746222650553,-521.73356972,0.0001999,2]
[359654985,1746222650560,-500.0,0.0001999,2]
[359654986,1746222650569,-500.0,0.0001999,2]
[359654987,1746222650578,-500.0,0.0001999,2]
[359654988,1746222650588,-500.0,0.0001999,2]
[359654989,1746222650597,-437.0,0.0001999,2]
[359654990,1746222650606,-150.0,0.0001999,2]
[359654991,1746222650616,-500.0,0.0001999,2]
[359654992,1746222650625,-500.0,0.0001999,2]
[359654993,1746222650634,-1074.92705239,0.0001999,2]
[359654994,1746222650644,-1074.92705239,0.0001999,2]
[359654995,1746222650653,-500.0,0.00019995,2]
[359654996,1746222650663,-150.0,0.00019995,2]
[359654997,1746222650672,-500.0,0.00019999,2]
[359654998,1746222650682,-675.05638042,0.00019999,2]
[359654999,1746222650692,-500.0,0.00019999,2]
[359655000,1746222650702,-500.0,0.00019999,2]
[359655001,1746222650712,-334.77930665,0.00019999,2]
[359655002,1746222650722,-300.0,0.00019999,2]
[359655003,1746222650733,-300.0,0.00019999,2]
[359655004,1746222650743,-259.59690718,0.0002,2]
[359655005,1746222650753,-525861.30550697,0.0002,2]
[359655006,1746222650763,-2279846.93973289,0.0002,2]
[359655007,1746222651109,-629.23687052,0.0002,2]
[359655008,1746222651440,-23233.48794506,0.0002,2]
[359655009,1746222651566,-450.0,0.00019713,2]
[359655010,1746222651576,-1542.86795015,0.00019741,2]
[359655011,1746222651587,-535.26750463,0.00019741,2]
[359655012,1746222651732,-319.98620246,0.00019741,2]
[359655013,1746222651741,-11972.6969623,0.0002,2]
[359655014,1746222651753,-3010.22088828,0.0002,2]
[359655015,1746222651764,-1269.7494336,0.0002,2]
[359655016,1746222651776,-5032.988,0.0002,2]
[359655017,1746222651788,-529.7000208,0.0002,2]
[359655018,1746222651799,-1936.0,0.0002,2]
[359655020,1746222817829,196.91,0.00019038,2]
[359655021,1746222896798,169.58,0.00018974,2]
[359655022,1746222896986,169.58,0.00018989,2]
[359655023,1746222897432,169.58,0.00019005,2]
[359655024,1746222897684,169.58,0.00019021,2]
[359655025,1746222897880,169.58,0.00019037,2]
[359655026,1746222898116,169.58,0.00019053,2]
[359655027,1746222898329,169.58,0.00019068,2]
[359655028,1746223017284,162.42,0.00018893,2]
[359655029,1746223041543,237.87,0.0001887,2]
[359655030,1746223226654,250.0,0.00017,2]
[359655031,1746223227774,300.0,0.00019,2]
[359655032,1746223332404,2263.36154936,0.00018792,2]
[359655033,1746223332426,10000.0,0.00018792,2]
[359655034,1746223332448,10000.0,0.00018792,2]
[359655035,1746223332469,1636.63845064,0.00018792,2]
[359655036,1746223456677,1000.0,0.0001879,2]
[359655037,1746223508049,603.51,0.00016872,2]
[359655038,1746223508274,603.51,0.00019136,2]
[359655039,1746223630937,166.66,0.00019345,2]
[359655040,1746223637315,5989.68154936,0.00019,2]
[359655041,1746223637337,10000.0,0.00019,2]
[359655042,1746223637359,10000.0,0.00019,2]
[359655043,1746223637380,10000.0,0.00019,2]
[359655044,1746223637403,10000.0,0.00019,2]
[359655045,1746223637424,10000.0,0.00019,2]
[359655046,1746223637447,10000.0,0.00019,2]
[359655047,1746223637476,34227.18385194,0.00019,2]
[359655049,1746223817633,-467.03,0.00019611,2]
[359655050,1746223817656,-300.0,0.00019611,2]
[359655051,1746223817678,-1200.0,0.00019611,2]
[359655052,1746223817699,-300.0,0.00019611,2]
[359655053,1746223817719,-250.0,0.00019611,2]
[359655054,1746223817741,-200.0,0.00019611,2]
[359655055,1746223817763,-200.0,0.00019612,2]
[359655056,1746223817787,-241.97,0.00019612,2]
[359655057,1746223832324,-2249.52804191,0.00019612,2]
[359655058,1746223832337,-600.88592764,0.00019612,2]
[359655059,1746223832475,-2393.82266055,0.00019612,2]
[359655063,1746223832889,-1899.99999,0.00019612,2]
[359655070,1746223838143,-1156.71180127,0.00019612,2]
[359655074,1746223838201,-879.20342316,0.00019612,2]
[359655075,1746223838312,-936.60724661,0.00019612,2]
[359655076,1746223838325,-841.66639696,0.00019612,2]
[359655077,1746223838337,-3983.37696743,0.00019612,2]
[359655078,1746223838512,-5877.63723216,0.00019612,2]
[359655079,1746223838522,-507.0595,0.00019612,2]
[359655080,1746223838532,-11200.3954881,0.00019644,2]
[359655081,1746223838542,-2904.78765798,0.00019644,2]
[359655086,1746223840465,-6956.22654152,0.00019644,2]
[359655087,1746223840475,-500.0,0.00019675,2]
[359655088,1746223840485,-475.6699512,0.00019675,2]
[359655089,1746223840495,-500.0,0.00019675,2]
[359655090,1746223840504,-500.0,0.00019675,2]
[359655091,1746223840514,-500.0,0.00019675,2]
[359655092,1746223840525,-500.0,0.00019675,2]
[359655093,1746223840535,-500.0,0.00019675,2]
[359655094,1746223840545,-500.0,0.00019675,2]
[359655095,1746223840554,-500.0,0.00019675,2]
[359655096,1746223840564,-342.96824831,0.00019675,2]
[359655097,1746223840574,-500.0,0.00019675,2]
[359655098,1746223840588,-11200.3954881,0.00019676,2]
[359655099,1746223840598,-9861.0141995,0.00019676,2]
[359655100,1746223840608,-11200.3954881,0.00019708,2]
[359655101,1746223840618,-9861.0141995,0.00019708,2]
[359655102,1746223840628,-450.0,0.0001971,2]
[359655103,1746223840638,-450.0,0.00019711,2]
[359655104,1746223840648,-450.0,0.00019711,2]
[359655105,1746223840659,-450.0,0.00019711,2]
[359655106,1746223840669,-450.0,0.00019711,2]
[359655107,1746223840679,-450.0,0.00019711,2]
[359655108,1746223840688,-450.0,0.00019711,2]
[359655109,1746223840755,-450.0,0.00019711,2]
[359655110,1746223840764,-450.0,0.00019711,2]
[359655111,1746223840773,-450.0,0.00019711,2]
[359655112,1746223840783,-450.0,0.00019711,2]
[359655113,1746223840792,-250.0,0.00019711,2]
[359655114,1746223840802,-450.0,0.00019711,2]
[359655115,1746223840811,-450.0,0.00019711,2]
[359655116,1746223840820,-598.06,0.00019711,2]
[359655117,1746223840829,-450.0,0.00019711,2]
[359655118,1746223840838,-450.0,0.00019711,2]
[359655119,1746223840847,-450.0,0.00019711,2]
[359655120,1746223840856,-450.0,0.00019711,2]
[359655121,1746223840864,-450.0,0.00019711,2]
[359655122,1746223840873,-450.0,0.00019711,2]
[359655123,1746223840882,-450.0,0.00019711,2]
[359655124,1746223840891,-782.364215,0.00019711,2]
[359655125,1746223840899,-450.0,0.00019711,2]
[359655126,1746223840907,-450.0,0.00019711,2]
[359655127,1746223840915,-450.0,0.00019711,2]
[359655128,1746223840922,-450.0,0.00019711,2]
[359655129,1746223840929,-450.0,0.00019711,2]
[359655130,1746223840935,-500.0,0.00019711,2]
[359655131,1746223840943,-450.0,0.00019711,2]
[359655132,1746223840950,-450.0,0.00019711,2]
[359655133,1746223840960,-450.0,0.00019711,2]
[359655134,1746223840970,-553.47632,0.00019711,2]
[359655135,1746223840979,-450.0,0.00019711,2]
[359655136,1746223840988,-845.17,0.00019711,2]
[359655137,1746223840997,-450.0,0.00019711,2]
[359655138,1746223841007,-450.0,0.00019711,2]
[359655139,1746223841017,-237.82795749,0.00019711,2]
[359655140,1746223841027,-450.0,0.00019711,2]
[359655141,1746223841036,-450.0,0.00019711,2]
[359655142,1746223841046,-450.0,0.00019711,2]
[359655143,1746223841056,-450.0,0.00019711,2]
[359655144,1746223841066,-450.0,0.00019711,2]
[359655145,1746223841075,-450.0,0.00019711,2]
[359655146,1746223841085,-648.61,0.00019711,2]
[359655147,1746223841094,-450.0,0.00019711,2]
[359655148,1746223841105,-454.55,0.00019711,2]
[359655149,1746223841115,-450.0,0.00019711,2]
[359655150,1746223841125,-450.0,0.00019711,2]
[359655151,1746223841134,-450.0,0.00019711,2]
[359655152,1746223841144,-450.0,0.00019711,2]
[359655153,1746223841154,-450.0,0.00019711,2]
[359655154,1746223841163,-450.0,0.00019711,2]
[359655155,1746223841173,-450.0,0.00019711,2]
[359655156,1746223841182,-450.0,0.00019711,2]
[359655157,1746223841192,-450.0,0.00019711,2]
[359655158,1746223841201,-450.0,0.00019711,2]
[359655159,1746223841211,-450.0,0.00019711,2]
[359655160,1746223841220,-450.0,0.00019711,2]
[359655161,1746223841230,-450.0,0.00019711,2]
[359655162,1746223841239,-450.0,0.00019711,2]
[359655163,1746223841247,-450.0,0.00019711,2]
[359655164,1746223841257,-458.92,0.00019711,2]
[359655165,1746223841266,-450.0,0.00019711,2]
[359655166,1746223841274,-450.0,0.00019711,2]
[359655167,1746223841284,-450.0,0.00019711,2]
[359655168,1746223841293,-450.0,0.00019711,2]
[359655169,1746223841304,-450.0,0.00019711,2]
[359655170,1746223841314,-450.0,0.00019711,2]
[359655171,1746223841323,-450.0,0.00019711,2]
[359655172,1746223841334,-450.0,0.00019711,2]
[359655173,1746223841343,-450.0,0.00019711,2]
[359655174,1746223841353,-450.0,0.00019711,2]
[359655175,1746223841363,-450.0,0.00019711,2]
[359655176,1746223841372,-450.0,0.00019711,2]
[359655177,1746223841382,-450.0,0.00019711,2]
[359655178,1746223841391,-450.0,0.00019711,2]
[359655179,1746223841401,-450.0,0.00019711,2]
[359655180,1746223841410,-450.0,0.00019711,2]
[359655181,1746223841419,-450.0,0.00019711,2]
[359655182,1746223841428,-450.0,0.00019711,2]
[359655183,1746223841438,-450.0,0.00019711,2]
[359655184,1746223841447,-450.0,0.00019711,2]
[359655185,1746223841456,-450.0,0.00019711,2]
[359655186,1746223841466,-450.0,0.00019711,2]
[359655187,1746223841475,-450.0,0.00019711,2]
[359655188,1746223841484,-539.67,0.00019711,2]
[359655189,1746223841494,-450.0,0.00019711,2]
[359655190,1746223841505,-450.0,0.00019711,2]
[359655191,1746223841514,-450.0,0.00019711,2]
[359655192,1746223841524,-463.43,0.00019711,2]
[359655193,1746223841534,-450.0,0.00019711,2]
[359655194,1746223841544,-450.0,0.00019711,2]
[359655195,1746223841554,-450.0,0.00019711,2]
[359655196,1746223841564,-7592.88,0.00019711,2]
[359655197,1746223841575,-450.0,0.00019711,2]
[359655198,1746223841585,-168.44821842,0.00019711,2]
[359655199,1746223841595,-450.0,0.00019711,2]
[359655200,1746223841604,-450.0,0.00019711,2]
[359655201,1746223841613,-734.13,0.00019711,2]
[359655202,1746223841623,-547.13,0.00019711,2]
[359655203,1746223841632,-565.75,0.00019711,2]
[359655204,1746223841642,-450.0,0.00019711,2]
[359655205,1746223841651,-450.0,0.00019711,2]
[359655206,1746223841661,-450.0,0.00019711,2]
[359655207,1746223841671,-450.0,0.00019711,2]
[359655208,1746223841681,-450.0,0.00019711,2]
[359655209,1746223841690,-450.0,0.00019711,2]
[359655210,1746223841700,-473.69,0.00019711,2]
[359655211,1746223841709,-653.29,0.00019711,2]
[359655212,1746223841719,-450.0,0.00019711,2]
[359655213,1746223841729,-450.0,0.00019711,2]
[359655214,1746223841738,-6082.99,0.00019711,2]
[359655215,1746223841749,-232.77923705,0.00019711,2]
[359655216,1746223841758,-911.41,0.00019711,2]
[359655217,1746223841768,-450.0,0.00019711,2]
[359655218,1746223841778,-450.0,0.00019711,2]
[359655219,1746223841788,-450.0,0.00019711,2]
[359655220,1746223841798,-467.81,0.00019711,2]
[359655221,1746223841808,-450.0,0.00019711,2]
[359655222,1746223841818,-1024.08,0.00019711,2]
[359655223,1746223841828,-450.0,0.00019711,2]
[359655224,1746223841837,-186.59084408,0.00019711,2]
[359655225,1746223841846,-450.0,0.00019711,2]
[359655226,1746223841855,-450.0,0.00019711,2]
[359655227,1746223841865,-450.0,0.00019711,2]
[359655228,1746223841874,-450.0,0.00019711,2]
[359655229,1746223841883,-450.0,0.00019711,2]
[359655230,1746223841892,-450.0,0.00019711,2]
[359655231,1746223841901,-463.07,0.00019711,2]
[359655232,1746223841910,-450.0,0.00019711,2]
[359655233,1746223841919,-490.6,0.00019711,2]
[359655234,1746223841928,-450.0,0.00019711,2]
[359655235,1746223841937,-450.0,0.00019711,2]
[359655236,1746223841946,-450.0,0.00019711,2]
[359655237,1746223841955,-600.82,0.00019711,2]
[359655238,1746223841964,-466.8,0.00019711,2]
[359655239,1746223841973,-450.0,0.00019711,2]
[359655240,1746223841982,-450.0,0.00019711,2]
[359655241,1746223841991,-454.61,0.00019711,2]
[359655242,1746223842000,-450.0,0.00019711,2]
[359655243,1746223842010,-450.0,0.00019711,2]
[359655244,1746223842019,-450.0,0.00019711,2]
[359655245,1746223842028,-450.0,0.00019711,2]
[359655246,1746223842037,-450.0,0.00019711,2]
[359655247,1746223842046,-699.65,0.00019711,2]
[359655248,1746223842055,-450.0,0.00019711,2]
[359655249,1746223842065,-450.0,0.00019711,2]
[359655250,1746223842075,-450.0,0.00019711,2]
[359655251,1746223842085,-545.61,0.00019711,2]
[359655252,1746223842095,-450.0,0.00019711,2]
[359655253,1746223842104,-2373.24,0.00019711,2]
[359655254,1746223842114,-109349.24,0.00019711,2]
[359655255,1746223842123,-535.07,0.00019711,2]
[359655256,1746223842133,-450.0,0.00019711,2]
[359655257,1746223842142,-450.0,0.00019711,2]
[359655258,1746223842151,-468.97,0.00019711,2]
[359655259,1746223842160,-450.0,0.00019711,2]
[359655260,1746223842170,-554.14,0.00019711,2]
[359655261,1746223842179,-450.0,0.00019711,2]
[359655262,1746223842190,-450.0,0.00019711,2]
[359655263,1746223842199,-450.0,0.00019711,2]
[359655264,1746223842209,-540.96,0.00019711,2]
[359655265,1746223842218,-490.49,0.00019711,2]
[359655266,1746223842228,-450.0,0.00019711,2]
[359655267,1746223842237,-450.0,0.00019711,2]
[359655268,1746223842247,-450.0,0.00019711,2]
[359655269,1746223842256,-450.0,0.00019711,2]
[359655270,1746223842265,-450.0,0.00019711,2]
[359655271,1746223842275,-525.81,0.00019711,2]
[359655272,1746223842284,-250.69866356,0.00019711,2]
[359655273,1746223842293,-1237.87,0.00019711,2]
[359655274,1746223842303,-450.0,0.00019711,2]
[359655275,1746223842313,-459.96,0.00019711,2]
[359655276,1746223842323,-1173.03,0.00019711,2]
[359655277,1746223842332,-450.0,0.00019711,2]
[359655278,1746223842342,-763.61,0.00019711,2]
[359655279,1746223842352,-516.6,0.00019711,2]
[359655280,1746223842361,-516.82,0.00019711,2]
[359655281,1746223842371,-450.0,0.00019711,2]
[359655282,1746223842383,-450.0,0.00019711,2]
[359655283,1746223842392,-1953.59,0.00019711,2]
[359655284,1746223842402,-450.0,0.00019711,2]
[359655285,1746223842411,-587.08,0.00019711,2]
[359655286,1746223842420,-450.0,0.00019711,2]
[359655287,1746223842429,-450.0,0.00019711,2]
[359655288,1746223842438,-450.0,0.00019711,2]
[359655289,1746223842448,-450.0,0.00019711,2]
[359655290,1746223842458,-450.0,0.00019711,2]
[359655291,1746223842467,-450.0,0.00019711,2]
[359655292,1746223842477,-450.0,0.00019711,2]
[359655293,1746223842485,-450.0,0.00019711,2]
[359655294,1746223842495,-450.0,0.00019711,2]
[359655295,1746223842504,-450.0,0.00019711,2]
[359655296,1746223842512,-5208.26,0.00019711,2]
[359655297,1746223842522,-450.0,0.00019711,2]
[359655298,1746223842531,-450.0,0.00019711,2]
[359655299,1746223842541,-450.0,0.00019711,2]
[359655300,1746223842550,-450.0,0.00019711,2]
[359655301,1746223842560,-450.0,0.00019711,2]
[359655302,1746223842570,-522.55,0.00019711,2]
[359655303,1746223842584,-450.0,0.00019711,2]
[359655304,1746223842593,-529.73,0.00019711,2]
[359655305,1746223842603,-450.0,0.00019711,2]
[359655306,1746223842613,-450.0,0.00019711,2]
[359655307,1746223842623,-1628.78,0.00019711,2]
[359655308,1746223842632,-3373.15,0.00019711,2]
[359655309,1746223842642,-450.0,0.00019711,2]
[359655310,1746223842651,-280.25488685,0.00019711,2]
[359655311,1746223842662,-1507.78,0.00019711,2]
[359655312,1746223842672,-450.0,0.00019711,2]
[359655313,1746223842682,-1080.39,0.00019711,2]
[359655314,1746223842691,-464.26,0.00019711,2]
[359655315,1746223842700,-522.35,0.00019711,2]
[359655316,1746223842709,-1614.78,0.00019711,2]
[359655317,1746223842719,-450.0,0.00019711,2]
[359655318,1746223842728,-559.78,0.00019711,2]
[359655319,1746223842737,-711.09,0.00019711,2]
[359655320,1746223842747,-545.16,0.00019711,2]
[359655321,1746223842756,-793.61,0.00019711,2]
[359655322,1746223842766,-450.0,0.00019711,2]
[359655323,1746223842775,-1609.56,0.00019711,2]
[359655324,1746223842785,-450.0,0.00019711,2]
[359655325,1746223842795,-450.0,0.00019711,2]
[359655326,1746223842805,-450.0,0.00019711,2]
[359655327,1746223842814,-450.0,0.00019711,2]
[359655328,1746223842824,-450.0,0.00019711,2]
[359655329,1746223842833,-450.0,0.00019711,2]
[359655330,1746223842843,-592.16,0.00019711,2]
[359655331,1746223842852,-450.0,0.00019711,2]
[359655332,1746223842862,-450.0,0.00019711,2]
[359655333,1746223842872,-450.0,0.00019711,2]
[359655334,1746223842882,-212.43129338,0.00019712,2]
[359655335,1746223842891,-450.0,0.00019712,2]
[359655336,1746223842900,-450.0,0.00019712,2]
[359655337,1746223842910,-450.0,0.00019712,2]
[359655338,1746223842919,-450.0,0.00019712,2]
[359655339,1746223842929,-588.08,0.00019712,2]
[359655340,1746223842939,-450.0,0.00019712,2]
[359655341,1746223842949,-450.0,0.00019712,2]
[359655342,1746223842958,-450.0,0.00019712,2]
[359655343,1746223842968,-450.0,0.00019712,2]
[359655344,1746223842977,-450.0,0.00019712,2]
[359655345,1746223842986,-450.0,0.00019712,2]
[359655346,1746223842996,-450.0,0.00019712,2]
[359655347,1746223843006,-450.0,0.00019712,2]
[359655348,1746223843016,-469.9574106,0.00019712,2]
[359655349,1746223843026,-450.0,0.00019712,2]
[359655350,1746223843035,-450.0,0.00019712,2]
[359655351,1746223843045,-450.0,0.00019712,2]
[359655352,1746223843054,-450.0,0.00019712,2]
[359655353,1746223843064,-471.01,0.00019712,2]
[359655354,1746223843074,-450.0,0.00019712,2]
[359655355,1746223843084,-450.0,0.00019712,2]
[359655356,1746223843093,-557.62,0.00019712,2]
[359655357,1746223843104,-801.24,0.00019712,2]
[359655358,1746223843113,-450.0,0.00019712,2]
[359655359,1746223843123,-597.81026485,0.00019712,2]
[359655360,1746223843133,-450.0,0.00019712,2]
[359655361,1746223843143,-1012.58,0.00019712,2]
[359655362,1746223843152,-300.0,0.00019712,2]
[359655363,1746223843161,-649.27,0.00019712,2]
[359655364,1746223843171,-510.3,0.00019712,2]
[359655365,1746223843180,-450.0,0.00019712,2]
[359655366,1746223843189,-450.0,0.00019712,2]
[359655367,1746223843199,-450.0,0.00019712,2]
[359655368,1746223843209,-450.0,0.00019712,2]
[359655369,1746223843218,-450.0,0.00019712,2]
[359655370,1746223843227,-450.0,0.00019712,2]
[359655371,1746223843238,-450.0,0.00019712,2]
[359655372,1746223843248,-450.0,0.00019712,2]
[359655373,1746223843257,-450.0,0.00019712,2]
[359655374,1746223843266,-840.55,0.00019712,2]
[359655375,1746223843276,-450.0,0.00019712,2]
[359655376,1746223843285,-450.0,0.00019712,2]
[359655377,1746223843295,-508.12,0.00019712,2]
[359655378,1746223843305,-450.0,0.00019712,2]
[359655379,1746223843316,-450.0,0.00019712,2]
[359655380,1746223843326,-450.0,0.00019712,2]
[359655381,1746223843335,-223.36576253,0.00019712,2]
[359655382,1746223843345,-450.0,0.00019712,2]
[359655383,1746223843355,-450.0,0.00019712,2]
[359655384,1746223843369,-364.98739259,0.00019712,2]
[359655385,1746223843379,-450.0,0.00019712,2]
[359655386,1746223843388,-450.0,0.00019712,2]
[359655387,1746223843398,-450.0,0.00019712,2]
[359655388,1746223843408,-450.0,0.00019712,2]
[359655389,1746223843418,-2545.2,0.00019712,2]
[359655390,1746223843427,-450.0,0.00019712,2]
[359655391,1746223843437,-450.0,0.00019712,2]
[359655392,1746223843447,-463.35,0.00019712,2]
[359655393,1746223843456,-450.0,0.00019712,2]
[359655394,1746223843466,-450.0,0.00019712,2]
[359655395,1746223843476,-530.24,0.00019712,2]
[359655396,1746223843486,-521.9,0.00019712,2]
[359655397,1746223843499,-450.0,0.00019712,2]
[359655398,1746223843508,-450.0,0.00019712,2]
[359655399,1746223843518,-450.0,0.00019712,2]
[359655400,1746223843527,-450.0,0.00019712,2]
[359655401,1746223843537,-1109.21,0.00019712,2]
[359655402,1746223843547,-911.36,0.00019712,2]
[359655403,1746223843557,-663.68,0.00019712,2]
[359655404,1746223843567,-450.0,0.00019712,2]
[359655405,1746223843581,-450.0,0.00019712,2]
[359655406,1746223843591,-450.0,0.00019712,2]
[359655407,1746223843601,-560.05773253,0.00019712,2]
[359655408,1746223843611,-450.0,0.00019712,2]
[359655409,1746223843621,-450.0,0.00019712,2]
[359655410,1746223843631,-450.0,0.00019712,2]
[359655411,1746223843641,-450.0,0.00019712,2]
[359655412,1746223843651,-450.0,0.00019712,2]
[359655413,1746223843660,-450.0,0.00019712,2]
[359655414,1746223843670,-747.11,0.00019712,2]
[359655415,1746223843679,-450.0,0.00019712,2]
[359655416,1746223843689,-533.4,0.00019712,2]
[359655417,1746223843706,-455.75,0.00019712,2]
[359655418,1746223843715,-450.0,0.00019712,2]
[359655419,1746223843725,-468.07,0.00019712,2]
[359655420,1746223843735,-450.0,0.00019712,2]
[359655421,1746223843745,-450.0,0.00019712,2]
[359655422,1746223843754,-450.0,0.00019712,2]
[359655423,1746223843763,-450.0,0.00019712,2]
[359655424,1746223843772,-450.0,0.00019712,2]
[359655425,1746223843781,-1133.58,0.00019712,2]